bitfinex-derivatives/quotes_BTCF0:USTF0_20250609
["timestamp","ask_amount","ask_price","bid_price","bid_amount"]
[1749490604748,1.28550931,108170.0,108160.0,0.32158259]
[1749490604953,1.1429683,108170.0,108160.0,0.41401684]
[1749490605154,1.35470931,108170.0,108160.0,0.22919284]
[1749490605348,1.35470931,108170.0,108160.0,0.09243425]
[1749490605658,1.34870391,108170.0,108160.0,0.09243425]
[1749490606754,1.59999493,108170.0,108160.0,0.09443425]
[1749490607055,1.43146186,108170.0,108160.0,0.02978]
[1749490607450,1.38825392,108170.0,108160.0,0.02978]
[1749490608064,1.43146186,108170.0,108160.0,0.02978]
[1749490608268,1.43446186,108170.0,108160.0,0.02426887]
[1749490608455,1.39125392,108170.0,108160.0,0.02005699]
[1749490609661,1.39125392,108170.0,108160.0,0.02411359]
[1749490610059,0.86309392,108170.0,108160.0,0.02411359]
[1749490610562,1.31874391,108170.0,108160.0,0.15386493]
[1749490610865,1.31830391,108170.0,108160.0,0.31863324]
[1749490611052,1.31870391,108170.0,108160.0,0.39153324]
[1749490612160,1.31862391,108170.0,108160.0,0.39153324]
[1749490612360,0.78954391,108170.0,108160.0,0.39153324]
[1749490612562,1.31858391,108170.0,108160.0,0.39153324]
[1749490612964,0.94284391,108170.0,108160.0,0.39153324]
[1749490613165,1.47184391,108170.0,108160.0,0.39153324]
[1749490614159,1.47184391,108170.0,108160.0,0.13380794]
[1749490614459,1.50834391,108170.0,108160.0,0.31863324]
[1749490615665,0.97934391,108170.0,108160.0,0.31863324]
[1749490615858,1.47156391,108170.0,108160.0,0.31863324]
[1749490616162,1.2249829,108170.0,108160.0,0.31863324]
[1749490616464,1.43632391,108170.0,108160.0,0.35163324]
[1749490616766,1.43668391,108170.0,108160.0,0.36433628]
[1749490617064,1.43668391,108170.0,108160.0,0.35163324]
[1749490617267,1.43668391,108170.0,108160.0,0.36433513]
[1749490617562,1.42767608,108170.0,108160.0,0.36433516]
[1749490618067,1.27437608,108170.0,108160.0,0.35163324]
[1749490618270,1.27437608,108170.0,108160.0,0.36434603]
[1749490618467,1.27437608,108170.0,108160.0,0.3643308]
[1749490618671,0.3642,108170.0,108160.0,0.36431329]
[1749490618866,0.74330101,108170.0,108160.0,0.71243324]
[1749490619063,0.53196,108170.0,108160.0,0.71243324]
[1749490619268,0.716768,108170.0,108160.0,0.71243324]
[1749490619467,0.716768,108170.0,108160.0,0.72500169]
[1749490619669,0.716768,108170.0,108160.0,0.72493425]
[1749490619868,0.53196,108170.0,108160.0,0.72493425]
[1749490620173,0.53204,108170.0,108160.0,0.92417425]
[1749490620469,0.53164,108170.0,108160.0,0.92417425]
[1749490620669,0.53196,108170.0,108160.0,0.92417425]
[1749490620869,0.10372,108170.0,108160.0,0.92417425]
[1749490621167,0.716768,108170.0,108160.0,0.92417425]
[1749490621371,0.716368,108170.0,108160.0,0.71243324]
[1749490621563,0.716768,108170.0,108160.0,0.71243324]
[1749490624372,0.716768,108170.0,108160.0,1.03895877]
[1749490625565,2.216768,108170.0,108160.0,0.82721776]
[1749490626773,2.03196,108170.0,108160.0,0.82721776]
[1749490626966,0.10412,108170.0,108160.0,1.03895877]
[1749490627470,2.03164,108170.0,108160.0,1.03895877]
[1749490628468,1.5034,108170.0,108160.0,1.03895877]
[1749490628668,2.03164,108170.0,108160.0,1.03895877]
[1749490629174,2.0316,108170.0,108160.0,1.03895877]
[1749490630178,2.0316,108170.0,108160.0,0.82721776]
[1749490630572,2.216408,108170.0,108160.0,0.82721776]
[1749490631073,2.42814901,108170.0,108160.0,0.82721776]
[1749490635877,2.216408,108170.0,108160.0,0.82721776]
[1749490637873,2.0312,108170.0,108160.0,1.03895877]
[1749490638078,2.0316,108170.0,108160.0,1.03895877]
[1749490638274,2.0316,108170.0,108160.0,1.06698315]
[1749490640876,0.5282,108170.0,108160.0,1.06698315]
[1749490641277,0.5286,108170.0,108160.0,1.06698315]
[1749490641478,0.10112,108170.0,108160.0,1.06698315]
[1749490641979,0.10072,108170.0,108160.0,1.06698315]
[1749490642281,0.10112,108170.0,108160.0,1.06698315]
[1749490642673,1e-07,108170.0,108160.0,1.58687115]
[1749490642875,0.00013894,108200.0,108190.0,0.1847738]
[1749490643071,0.00013894,108200.0,108190.0,0.97326808]
[1749490643283,0.00013894,108200.0,108190.0,1.0019314]
[1749490643577,0.00013894,108200.0,108190.0,1.09438274]
[1749490644280,0.00053894,108200.0,108190.0,1.09638274]
[1749490645273,0.00053894,108200.0,108190.0,0.88464173]
[1749490645473,0.00053894,108200.0,108190.0,1.09638274]
[1749490646370,0.00153894,108200.0,108190.0,1.09438274]
[1749490651178,0.00153894,108200.0,108190.0,1.20858189]
[1749490651378,0.00153894,108200.0,108190.0,1.0652653]
[1749490651971,0.00113894,108200.0,108190.0,1.0652653]
[1749490652278,0.00153894,108200.0,108190.0,1.0652653]
[1749490652975,0.00053894,108200.0,108190.0,1.0662653]
[1749490656175,0.00053894,108200.0,108190.0,1.0703219]
[1749490656976,0.25791461,108240.0,108230.0,0.1846885]
[1749490657277,0.8227869,108240.0,108230.0,0.5454885]
[1749490657482,0.8227869,108240.0,108230.0,0.63791421]
[1749490657677,0.2948669,108240.0,108230.0,0.67101421]
[1749490657882,0.85265397,108240.0,108230.0,0.67101421]
[1749490658286,0.85305397,108240.0,108230.0,0.67101421]
[1749490658981,0.85805397,108240.0,108230.0,0.67101421]
[1749490659585,1.1454927,108240.0,108230.0,0.67101421]
[1749490660678,1.1454927,108240.0,108230.0,0.31021421]
[1749490660885,1.1454927,108240.0,108230.0,0.67101421]
[1749490662086,0.6175727,108240.0,108230.0,0.31021421]
[1749490662386,0.14256479,108240.0,108230.0,0.88275522]
[1749490662584,0.67040479,108240.0,108230.0,0.91565522]
[1749490662983,0.67000479,108240.0,108230.0,0.91565522]
[1749490663285,0.67040479,108240.0,108230.0,0.91565522]
[1749490663489,0.85509319,108240.0,108230.0,0.94865522]
[1749490664890,0.85509329,108240.0,108230.0,0.94865522]
[1749490665082,0.21160479,108240.0,108230.0,0.94865522]
[1749490665285,0.63880479,108240.0,108230.0,0.94865522]
[1749490665490,2.13880479,108240.0,108230.0,0.94865522]
[1749490666186,0.82349319,108240.0,108230.0,0.94865522]
[1749490666488,0.63880479,108240.0,108230.0,0.94865522]
[1749490666689,0.21160479,108240.0,108230.0,0.94865522]
[1749490666897,0.0054,108240.0,108230.0,0.94865522]
[1749490667184,0.00013894,108250.0,108240.0,0.1846884]
[1749490667390,0.00013894,108250.0,108240.0,0.82122941]
[1749490667579,1.5307,108260.0,108250.0,0.1846714]
[1749490667783,1.5,108260.0,108250.0,0.85151241]
[1749490668180,1.5004,108260.0,108250.0,0.85151241]
[1749490668387,1.52944238,108260.0,108250.0,0.94388689]
[1749490668984,1.52944238,108260.0,108250.0,0.73214588]
[1749490669189,1.95653769,108260.0,108250.0,0.31024588]
[1749490670184,1.74479668,108260.0,108250.0,0.67104588]
[1749490670388,1.74479668,108260.0,108250.0,0.31024588]
[1749490670790,1.95653769,108260.0,108250.0,0.31024588]
[1749490674293,1.95653769,108260.0,108250.0,0.09237448]
[1749490674487,0.82874538,108260.0,108250.0,0.09237448]
[1749490674688,0.46794538,108260.0,108250.0,0.27704588]
[1749490675089,0.82874538,108260.0,108250.0,0.27704588]
[1749490675798,0.83074538,108260.0,108250.0,0.27704588]
[1749490676496,0.83074538,108260.0,108250.0,0.09643108]
[1749490676895,0.83074538,108260.0,108250.0,0.28110248]
[1749490677693,0.83074538,108260.0,108250.0,0.09643108]
[1749490677893,0.87140613,108260.0,108250.0,0.09643108]
[1749490678393,1.40092613,108260.0,108250.0,0.09643108]
[1749490681094,1.40092613,108260.0,108250.0,0.28110248]
[1749490681494,1.40092613,108260.0,108250.0,0.09643108]
[1749490682798,1.40092613,108260.0,108250.0,0.28110248]
[1749490682998,1.40092613,108260.0,108250.0,0.09643108]
[1749490683204,1.44395008,108260.0,108250.0,0.09643108]
[1749490684297,1.40092613,108260.0,108250.0,0.28110248]
[1749490684495,1.44395008,108260.0,108250.0,0.28110248]
[1749490684702,1.40092613,108260.0,108250.0,0.28110248]
[1749490686490,1.40092613,108260.0,108250.0,0.09643108]
[1749490687402,1.40092613,108260.0,108250.0,0.28110248]
[1749490687702,1.40092613,108260.0,108250.0,0.09643108]
[1749490688206,1.40092613,108260.0,108250.0,0.28110248]
[1749490688408,1.40092613,108260.0,108250.0,0.31130248]
[1749490688598,1.39148613,108260.0,108250.0,0.31130248]
[1749490689301,1.39152613,108260.0,108250.0,0.31130248]
[1749490689601,1.39148613,108260.0,108250.0,0.31130248]
[1749490689992,1.39144613,108260.0,108250.0,0.31130248]
[1749490691310,0.07371082,108260.0,108250.0,0.52304349]
[1749490691498,0.74702437,108260.0,108250.0,0.91714349]
[1749490691701,0.74742437,108260.0,108250.0,0.91308689]
[1749490692097,0.74742437,108260.0,108250.0,0.70134588]
[1749490692509,0.74542437,108260.0,108250.0,0.70134588]
[1749490693209,0.77822437,108260.0,108250.0,0.70134588]
[1749490693604,0.98996538,108260.0,108250.0,0.70134588]
[1749490694709,0.98996538,108260.0,108250.0,0.72138588]
[1749490695909,0.77822437,108260.0,108250.0,0.72138588]
[1749490697406,0.77822437,108260.0,108250.0,0.36058588]
[1749490698110,0.93152437,108260.0,108250.0,0.36058588]
[1749490698312,0.77822437,108260.0,108250.0,0.36058588]
[1749490698513,0.98996538,108260.0,108250.0,0.36058588]
[1749490698708,1.35076538,108260.0,108250.0,0.14261448]
[1749490699613,1.39121883,108260.0,108250.0,0.32728588]
[1749490699814,0.98996538,108260.0,108250.0,0.32728588]
[1749490700015,1.35076538,108260.0,108250.0,0.14261448]
[1749490700415,1.35276538,108260.0,108250.0,0.32728588]
[1749490700611,1.35276538,108260.0,108250.0,0.14261448]
[1749490700815,1.54652753,108260.0,108250.0,0.14667108]
[1749490704717,1.54652753,108260.0,108250.0,0.33134238]
[1749490705108,1.54604753,108260.0,108250.0,0.33134238]
[1749490706106,1.54604753,108260.0,108250.0,0.14667108]
[1749490709323,1.54604753,108260.0,108250.0,0.33134238]
[1749490709625,1.54604753,108260.0,108250.0,0.14667108]
[1749490720533,1.01680753,108260.0,108250.0,0.14667108]
[1749490720845,1.54460753,108260.0,108250.0,0.14667108]
[1749490723533,1.01680753,108260.0,108250.0,0.14667108]
[1749490723734,1.30006652,108260.0,108250.0,0.33134248]
[1749490724029,1.30006652,108260.0,108250.0,0.36224248]
[1749490726127,0.61896652,108260.0,108250.0,0.36224248]
[1749490726334,0.78435883,108260.0,108250.0,0.93478349]
[1749490726635,0.74389668,108260.0,108250.0,1.04898264]
[1749490727035,0.74389668,108260.0,108250.0,0.83724163]
[1749490727337,0.74389668,108260.0,108250.0,0.83318503]
[1749490727536,0.74189668,108260.0,108250.0,0.83318503]
[1749490728738,0.89519668,108260.0,108250.0,0.83318503]
[1749490728938,0.74189668,108260.0,108250.0,0.83318503]
[1749490730828,0.95363769,108260.0,108250.0,0.47238503]
[1749490733833,0.74189668,108260.0,108250.0,0.47238503]
[1749490734042,0.95363769,108260.0,108250.0,0.47238503]
[1749490737542,0.74189668,108260.0,108250.0,0.47238503]
[1749490738541,0.74189668,108260.0,108250.0,0.83318503]
[1749490738740,0.74189668,108260.0,108250.0,0.47238503]
[1749490743941,0.95363769,108260.0,108250.0,0.28771363]
[1749490744143,0.95363769,108260.0,108250.0,0.32728838]
[1749490744144,1.37994539,108260.0,108250.0,0.32728838]
[1749490744344,1.01914539,108260.0,108250.0,0.32728838]
[1749490744638,1.37994539,108260.0,108250.0,0.33134498]
[1749490745938,1.16820438,108260.0,108250.0,0.33134498]
[1749490746242,1.37994539,108260.0,108250.0,0.33134498]
[1749490747549,1.42019524,108260.0,108250.0,0.33134498]
[1749490747734,1.20845423,108260.0,108250.0,0.33134498]
[1749490747939,1.38811524,108260.0,108250.0,0.33134498]
[1749490748139,0.49959524,108260.0,108250.0,0.33134498]
[1749490748348,0.98706539,108260.0,108250.0,0.36284498]
[1749490748740,0.77532438,108260.0,108250.0,0.36284498]
[1749490749241,1.28942438,108260.0,108250.0,0.36284498]
[1749490749442,1.50116539,108260.0,108250.0,0.36284498]
[1749490749642,1.14036539,108260.0,108250.0,0.14667108]
[1749490749837,1.14036539,108260.0,108250.0,0.33134498]
[1749490749838,1.50116539,108260.0,108250.0,0.33134498]
[1749490750042,1.14036539,108260.0,108250.0,0.33134498]
[1749490750241,1.50116539,108260.0,108250.0,0.33134498]
[1749490750445,1.54139933,108260.0,108250.0,0.14667108]
[1749490750650,0.184691,108240.0,108230.0,0.34935725]
[1749490750841,0.92411201,108240.0,108230.0,0.45345465]
[1749490751044,0.95731201,108240.0,108230.0,0.45345465]
[1749490751244,0.95731201,108240.0,108230.0,0.54582913]
[1749490751841,1.31811201,108240.0,108230.0,0.54582913]
[1749490752441,0.95731201,108240.0,108230.0,0.54582913]
[1749490752849,0.95731201,108240.0,108230.0,0.46915253]
[1749490753045,1.31811201,108240.0,108230.0,0.42297593]
[1749490753251,1.31811201,108240.0,108230.0,0.42497593]
[1749490753647,1.31811201,108240.0,108230.0,0.31077678]
[1749490755448,1.31811201,108240.0,108230.0,0.31078258]
[1749490755652,0.95731201,108240.0,108230.0,0.31078258]
[1749490756657,1.31811201,108240.0,108230.0,0.31078258]
[1749490758048,0.79043201,108240.0,108230.0,0.31078258]
[1749490758242,1.31815201,108240.0,108230.0,0.31078258]
[1749490758846,0.318491,108240.0,108230.0,0.88332359]
[1749490759054,0.745571,108240.0,108230.0,0.91492359]
[1749490759355,0.371191,108240.0,108230.0,0.91492359]
[1749490759549,0.865671,108240.0,108230.0,0.91492359]
[1749490759750,0.865671,108240.0,108230.0,1.03317934]
[1749490759945,0.337991,108240.0,108230.0,0.91898019]
[1749490760255,0.7278843,108250.0,108240.0,0.184691]
[1749490760445,1.2556043,108250.0,108240.0,0.639191]
[1749490760648,1.2560043,108250.0,108240.0,0.639191]
[1749490760947,0.94684,108250.0,108240.0,0.94332356]
[1749490761154,1.1315139,108250.0,108240.0,0.94332356]
[1749490761358,0.94644,108250.0,108240.0,0.94432356]
[1749490761655,1.1315139,108250.0,108240.0,0.94432356]
[1749490762153,1.1315139,108250.0,108240.0,1.05852271]
[1749490762951,0.41916,108250.0,108240.0,1.05852271]
[1749490763150,0.94684,108250.0,108240.0,1.05852271]
[1749490763350,0.94644,108250.0,108240.0,1.05852271]
[1749490763549,0.41876,108250.0,108240.0,1.2018393]
[1749490763752,0.41916,108250.0,108240.0,1.08764015]
[1749490763953,0.94684,108250.0,108240.0,1.08764015]
[1749490765254,0.94684,108250.0,108240.0,1.20178731]
[1749490765456,1.1315139,108250.0,108240.0,1.05847072]
[1749490765658,2.44684,108250.0,108240.0,1.05847072]
[1749490766156,2.44684,108250.0,108240.0,1.20178597]
[1749490766349,2.44684,108250.0,108240.0,1.08764015]
[1749490766953,2.44684,108250.0,108240.0,1.20178574]
[1749490767257,2.4468,108250.0,108240.0,1.05846915]
[1749490768360,1.91916,108250.0,108240.0,1.05846915]
[1749490768552,2.4468,108250.0,108240.0,1.05846915]
[1749490769057,1.5004,108250.0,108240.0,1.05846915]
[1749490769259,2.02804,108250.0,108240.0,1.05846915]
[1749490771062,1.5004,108250.0,108240.0,1.05846915]
[1749490771263,1.92744,108250.0,108240.0,1.15606457]
[1749490771457,1.92704,108250.0,108240.0,1.29938116]
[1749490771659,1.92744,108250.0,108240.0,1.29938116]
[1749490772462,0.0004,108250.0,108240.0,1.29938116]
[1749490772663,0.4274,108250.0,108240.0,1.29938116]
[1749490772863,0.4274,108250.0,108240.0,1.08764015]
[1749490773566,0.0004,108250.0,108240.0,1.08764015]
[1749490773757,0.4274,108250.0,108240.0,1.29938116]
[1749490773958,0.427,108250.0,108240.0,1.29938116]
[1749490774265,0.4274,108250.0,108240.0,1.29938116]
[1749490775065,0.4274,108250.0,108240.0,1.08764015]
[1749490775663,0.4274,108250.0,108240.0,0.87589914]
[1749490775862,0.0004,108250.0,108240.0,1.08764015]
[1749490776060,0.4274,108250.0,108240.0,1.08764015]
[1749490776566,0.4274,108250.0,108240.0,0.87589914]
[1749490776762,0.0004,108250.0,108240.0,1.08764015]
[1749490776964,0.42736,108250.0,108240.0,1.08764015]
[1749490778768,0.0004,108250.0,108240.0,1.08764015]
[1749490779466,0.0004,108250.0,108240.0,1.44844015]
[1749490779861,0.0004,108250.0,108240.0,0.87589914]
[1749490780064,0.032,108250.0,108240.0,0.87589914]
[1749490780268,0.2166746,108250.0,108240.0,0.87589914]
[1749490781668,0.2166746,108250.0,108240.0,1.08764015]
[1749490782470,0.032,108250.0,108240.0,0.84429914]
[1749490782670,0.2166746,108250.0,108240.0,0.84429914]
[1749490783067,0.2166746,108250.0,108240.0,1.17016579]
[1749490783567,0.2166746,108250.0,108240.0,1.0268492]
[1749490783769,0.2166746,108250.0,108240.0,1.02686128]
[1749490784572,0.032,108250.0,108240.0,1.02686128]
[1749490785071,0.2166746,108250.0,108240.0,1.02686128]
[1749490785272,0.032,108250.0,108240.0,1.02686128]
[1749490785776,0.032,108250.0,108240.0,1.38766128]
[1749490787279,0.216673,108250.0,108240.0,1.38766128]
[1749490787576,0.032,108250.0,108240.0,1.38766128]
[1749490787872,0.032,108250.0,108240.0,1.27352356]
[1749490788376,0.032,108250.0,108240.0,1.38781527]
[1749490788569,0.032,108250.0,108240.0,1.27352356]
[1749490789579,0.032,108250.0,108240.0,1.41684015]
[1749490789580,0.45892,108250.0,108240.0,1.41684015]
[1749490789774,0.45892,108250.0,108240.0,1.44824015]
[1749490790477,0.5278,108250.0,108240.0,1.65998116]
[1749490790672,0.0004,108250.0,108240.0,1.65998116]
[1749490790882,2.08794238,108260.0,108250.0,0.184673]
[1749490791076,2.08794238,108260.0,108250.0,0.78981401]
[1749490791273,0.06054238,108260.0,108250.0,0.82121401]
[1749490791473,1e-08,108270.0,108260.0,0.1846576]
[1749490791779,0.05161744,108290.0,108280.0,0.2307778]
[1749490792079,0.0317,108290.0,108280.0,1.37549688]
[1749490792278,0.0317,108290.0,108280.0,1.40404139]
[1749490792484,0.0317,108290.0,108280.0,1.49639028]
[1749490792676,0.0317,108290.0,108280.0,1.46776457]
[1749490792977,0.0004,108290.0,108280.0,1.46776457]
[1749490793166,0.0004,108290.0,108280.0,1.49639028]
[1749490793368,0.03143894,108300.0,108290.0,0.1846066]
[1749490793567,0.03143894,108300.0,108290.0,0.90133196]
[1749490793969,0.00013894,108300.0,108290.0,1.02548085]
[1749490794180,0.00053894,108300.0,108290.0,1.02548085]
[1749490794370,0.00013894,108300.0,108290.0,1.02548085]
[1749490794580,0.00013894,108300.0,108290.0,0.9113965]
[1749490794883,0.00013894,108300.0,108290.0,1.11759637]
[1749490795084,0.00053894,108300.0,108290.0,1.67382308]
[1749490795687,0.00053894,108300.0,108290.0,1.78752732]
[1749490795892,0.00053894,108300.0,108290.0,1.64480474]
[1749490796286,0.00153894,108300.0,108290.0,1.64480474]
[1749490797889,0.08610831,108310.0,108300.0,0.1845896]
[1749490798081,0.90007761,108320.0,108310.0,0.1845725]
[1749490798276,0.02968808,108320.0,108310.0,0.5754725]
[1749490798481,0.21424358,108320.0,108310.0,0.66780434]
[1749490798885,0.21464358,108320.0,108310.0,0.66780434]
[1749490799391,0.2342501,108320.0,108310.0,0.87954535]
[1749490799590,0.30946796,108320.0,108310.0,0.66780434]
[1749490799780,0.27977988,108320.0,108310.0,0.66780434]
[1749490800091,0.09822438,108320.0,108310.0,0.66780434]
[1749490800287,0.09822438,108320.0,108310.0,0.87954535]
[1749490800496,0.07821786,108320.0,108310.0,0.91234535]
[1749490800792,0.07861786,108320.0,108310.0,0.91234535]
[1749490801085,0.07861786,108320.0,108310.0,1.01286535]
[1749490801283,0.07861786,108320.0,108310.0,1.43958535]
[1749490801688,0.07861786,108320.0,108310.0,0.91234535]
[1749490801893,0.09866208,108320.0,108310.0,0.91234535]
[1749490802189,0.0034,108320.0,108310.0,1.22776434]
[1749490802389,0.0004,108320.0,108310.0,1.44150535]
[1749490802791,0.0004,108320.0,108310.0,1.44146535]
[1749490803090,0.0735114,108320.0,108310.0,1.44146535]
[1749490803294,0.0004,108320.0,108310.0,1.44146535]
[1749490803483,0.0004,108320.0,108310.0,0.91434535]
[1749490803688,0.0004,108320.0,108310.0,1.44146535]
[1749490804290,0.0004,108320.0,108310.0,1.34098535]
[1749490804487,0.1849555,108320.0,108310.0,0.91434535]
[1749490804691,0.0004,108320.0,108310.0,1.34098535]
[1749490804993,0.1849555,108320.0,108310.0,0.91434535]
[1749490805295,0.1849555,108320.0,108310.0,1.12924434]
[1749490805487,0.20489009,108320.0,108310.0,1.12924434]
[1749490805685,0.20489009,108320.0,108310.0,0.70260434]
[1749490805893,0.7384311,108320.0,108310.0,0.12243184]
[1749490806091,0.8126311,108320.0,108310.0,0.27790434]
[1749490806295,2.3126311,108320.0,108310.0,0.27790434]
[1749490806497,1.9420311,108320.0,108310.0,0.27790434]
[1749490806792,1.9420311,108320.0,108310.0,0.31070434]
[1749490807592,2.01516464,108320.0,108310.0,0.31070434]
[1749490812899,1.97616464,108320.0,108310.0,0.31070434]
[1749490815299,0.55192813,108320.0,108310.0,0.67150434]
[1749490815501,0.55192813,108320.0,108310.0,0.70350434]
[1749490815796,2.05192813,108320.0,108310.0,0.70350434]
[1749490815995,2.23688503,108320.0,108310.0,0.70350434]
[1749490816396,2.05232813,108320.0,108310.0,0.70350434]
[1749490817005,2.23688523,108320.0,108310.0,0.70350434]
[1749490817393,0.09346813,108320.0,108310.0,0.91524535]
[1749490817602,0.09346813,108320.0,108310.0,0.94564535]
[1749490817902,0.09306813,108320.0,108310.0,0.94564535]
[1749490818101,0.45779894,108330.0,108320.0,0.1845571]
[1749490818291,0.45779894,108330.0,108320.0,0.6071571]
[1749490818700,0.65423136,108330.0,108320.0,0.69947189]
[1749490819100,0.86597237,108330.0,108320.0,0.69947189]
[1749490819496,0.43941237,108330.0,108320.0,0.69947189]
[1749490819696,0.86593247,108330.0,108320.0,0.69947189]
[1749490819897,0.86633247,108330.0,108320.0,0.69947189]
[1749490820096,0.61559146,108330.0,108320.0,0.33867189]
[1749490820293,1.39987348,108330.0,108320.0,0.09231479]
[1749490820501,1.48225206,108330.0,108320.0,0.09231479]
[1749490820803,1.52429217,108330.0,108320.0,0.27687189]
[1749490821697,1.52629217,108330.0,108320.0,0.27687189]
[1749490822307,1.16549217,108330.0,108320.0,0.27687189]
[1749490822605,1.04435116,108330.0,108320.0,0.27687189]
[1749490822809,1.04431116,108330.0,108320.0,0.30877189]
[1749490823000,1.04391116,108330.0,108320.0,0.30877189]
[1749490823196,1.07651116,108330.0,108320.0,0.30877189]
[1749490823397,1.43731116,108330.0,108320.0,0.30877189]
[1749490824602,1.22557015,108330.0,108320.0,0.30877189]
[1749490824795,1.43731116,108330.0,108320.0,0.30877189]
[1749490825505,1.07651116,108330.0,108320.0,0.30877189]
[1749490825709,1.43731116,108330.0,108320.0,0.30877189]
[1749490827009,1.39831116,108330.0,108320.0,0.30877189]
[1749490827400,1.61005217,108330.0,108320.0,0.27687189]
[1749490827600,1.61985217,108330.0,108320.0,0.27687189]
[1749490827795,1.63197164,108330.0,108320.0,0.09231479]
[1749490827996,1.63197164,108330.0,108320.0,0.27687189]
[1749490828197,1.63197164,108330.0,108320.0,0.09231479]
[1749490828601,1.63197164,108330.0,108320.0,0.27687189]
[1749490829206,1.63197164,108330.0,108320.0,0.09231479]
[1749490829711,1.63197164,108330.0,108320.0,0.27687189]
[1749490831011,1.63197164,108330.0,108320.0,0.09231479]
[1749490831505,0.1845742,108310.0,108290.0,0.37717482]
[1749490831701,0.93576746,108310.0,108300.0,0.1845905]
[1749490831900,1.49294746,108310.0,108300.0,0.2163905]
[1749490832108,1.49294746,108310.0,108300.0,0.30870529]
[1749490832913,1.49294746,108310.0,108300.0,0.30970529]
[1749490833823,1.49294746,108310.0,108300.0,0.30970599]
[1749490834015,1.50274746,108310.0,108300.0,0.30970599]
[1749490834212,1.46374746,108310.0,108300.0,0.30970599]
[1749490834411,1.46374746,108310.0,108300.0,0.12511479]
[1749490834613,1.46374746,108310.0,108300.0,0.09331479]
[1749490834824,1.46374746,108310.0,108300.0,0.09220287]
[1749490835322,1.46374746,108310.0,108300.0,0.09120287]
[1749490835623,1.46674746,108310.0,108300.0,0.27579407]
[1749490835826,1.46674746,108310.0,108300.0,0.09120287]
[1749490835827,1.67848847,108310.0,108300.0,0.09120287]
[1749490836118,1.28708284,108310.0,108300.0,0.09120287]
[1749490836312,1.55907546,108310.0,108300.0,0.09120287]
[1749490836510,1.77081647,108310.0,108300.0,0.09120287]
[1749490836710,1.77081647,108310.0,108300.0,0.04506962]
[1749490838720,0.1845912,108300.0,108290.0,0.03313894]
[1749490838922,1.44899322,108300.0,108290.0,0.03313894]
[1749490839124,1.45879322,108300.0,108290.0,0.12547078]
[1749490839524,1.45879322,108300.0,108290.0,0.31007898]
[1749490839720,1.98567322,108300.0,108290.0,0.31007898]
[1749490839923,1.46079322,108300.0,108290.0,0.31007898]
[1749490840225,1.98767322,108300.0,108290.0,0.31007898]
[1749490840720,1.97787322,108300.0,108290.0,0.31007898]
[1749490840922,1.97787322,108300.0,108290.0,0.12547078]
[1749490841128,1.98767322,108300.0,108290.0,0.07932894]
[1749490841822,0.1846253,108280.0,108270.0,0.3080469]
[1749490842123,0.1846423,108270.0,108260.0,0.34495158]
[1749490842426,1.49584432,108270.0,108260.0,0.29524644]
[1749490842627,0.92330331,108270.0,108260.0,0.29524644]
[1749490842832,0.99614835,108270.0,108260.0,0.38761239]
[1749490843130,0.79648185,108270.0,108260.0,0.38761239]
[1749490843321,1.00822286,108270.0,108260.0,0.38761239]
[1749490843628,1.36902286,108270.0,108260.0,0.38761239]
[1749490843824,0.26956185,108270.0,108260.0,0.38761239]
[1749490844029,0.79644185,108270.0,108260.0,0.38761239]
[1749490844329,0.26956185,108270.0,108260.0,0.41791239]
[1749490844626,0.79644185,108270.0,108260.0,0.41791239]
[1749490844929,0.26956185,108270.0,108260.0,0.41791239]
[1749490845123,0.79644185,108270.0,108260.0,0.41991239]
[1749490846330,0.7115223,108270.0,108260.0,0.41991239]
[1749490846632,0.2307866,108280.0,108270.0,0.1846423]
[1749490846825,0.2307866,108280.0,108270.0,0.6096423]
[1749490846826,0.7576266,108280.0,108270.0,0.6096423]
[1749490847030,0.2307866,108280.0,108270.0,0.6096423]
[1749490847231,0.7114688,108280.0,108270.0,0.70200825]
[1749490847631,0.7114688,108280.0,108270.0,0.34120825]
[1749490847827,1.28400981,108280.0,108270.0,0.34120825]
[1749490848025,1.28400981,108280.0,108270.0,0.15656595]
[1749490848226,0.95610981,108280.0,108270.0,0.15656595]
[1749490848426,1.34900981,108280.0,108270.0,0.31030825]
[1749490848928,1.34900981,108280.0,108270.0,0.12566595]
[1749490849431,1.74395082,108280.0,108270.0,0.12566595]
[1749490849731,1.83631082,108280.0,108270.0,0.001]
[1749490850337,1.30947082,108280.0,108270.0,0.001]
[1749490850535,1.83635082,108280.0,108270.0,0.001]
[1749490850727,1.84834269,108280.0,108270.0,0.001]
[1749490852127,1.66371389,108280.0,108260.0,0.03525553]
[1749490852329,1.03112432,108270.0,108260.0,0.00235553]
[1749490852630,1.03112432,108270.0,108260.0,0.09471295]
[1749490852823,1.03112432,108270.0,108260.0,0.00235553]
[1749490854229,1.55800432,108270.0,108260.0,0.00235553]
[1749490854739,1.55800432,108270.0,108260.0,0.00435553]
[1749490855729,1.03112432,108270.0,108260.0,0.00435553]
[1749490855929,1.31556331,108270.0,108260.0,0.28138088]
[1749490856130,1.31556331,108270.0,108260.0,0.31228088]
[1749490856325,0.78868331,108270.0,108260.0,0.31228088]
[1749490856535,1.31556331,108270.0,108260.0,0.34278088]
[1749490856936,1.39115009,108270.0,108260.0,0.34278088]
[1749490857138,1.39155009,108270.0,108260.0,0.34278088]
[1749490858231,0.72178908,108270.0,108260.0,0.34278088]
[1749490858431,0.47197009,108270.0,108260.0,0.34278088]
[1749490858637,0.07598678,108270.0,108260.0,0.34278088]
[1749490858836,0.7119623,108270.0,108260.0,0.34278088]
[1749490859037,0.7115623,108270.0,108260.0,0.70358088]
[1749490859236,0.7119623,108270.0,108260.0,0.70358088]
[1749490859635,0.0004,108270.0,108260.0,0.70358088]
[1749490859833,0.52732,108270.0,108260.0,0.70358088]
[1749490860032,0.52692,108270.0,108260.0,0.70358088]
[1749490860227,0.0004,108270.0,108260.0,0.70358088]
[1749490860436,0.52732,108270.0,108260.0,0.70358088]
[1749490860733,0.10076,108270.0,108260.0,0.70358088]
[1749490861036,0.60190851,108270.0,108260.0,0.91532189]
[1749490861632,0.60190851,108270.0,108260.0,0.70358088]
[1749490861832,0.78655081,108270.0,108260.0,0.70358088]
[1749490862843,0.60190851,108270.0,108260.0,0.70358088]
[1749490863141,0.78655081,108270.0,108260.0,0.70358088]
[1749490864640,0.78655081,108270.0,108260.0,0.81758602]
[1749490866738,0.07498851,108270.0,108260.0,0.81758602]
[1749490866942,0.60146851,108270.0,108260.0,0.91532189]
[1749490867143,0.60186851,108270.0,108260.0,0.91532189]
[1749490868846,0.60186851,108270.0,108260.0,0.70358088]
[1749490869945,0.99825182,108270.0,108260.0,0.34278088]
[1749490870138,1.35905182,108270.0,108260.0,0.34278088]
[1749490871446,1.35865182,108270.0,108260.0,0.34278088]
[1749490871644,0.99825182,108270.0,108260.0,0.34278088]
[1749490872031,0.78651081,108270.0,108260.0,0.34278088]
[1749490872851,0.99825182,108270.0,108260.0,0.34278088]